bitfinex/quotes_BTCUSD_20251207
["timestamp","ask_amount","ask_price","bid_price","bid_amount"]
[1765110679870,0.24732691,89344.0,89341.0,0.002]
[1765110680096,0.22385859,89343.0,89341.0,0.002]
[1765110680728,0.02347269,89344.0,89341.0,0.002]
[1765110681113,0.24732788,89344.0,89341.0,0.002]
[1765110681678,0.01119281,89343.0,89339.0,0.01119331]
[1765110681877,0.01119281,89343.0,89341.0,0.002]
[1765110682490,0.01119281,89343.0,89340.0,0.01119319]
[1765110682790,0.01119281,89343.0,89339.0,0.01419331]
[1765110683167,0.01119281,89343.0,89339.0,0.01119331]
[1765110683577,0.01119294,89342.0,89337.0,0.01119357]
[1765110684172,0.01119306,89341.0,89340.0,0.002]
[1765110684534,0.01119281,89343.0,89340.0,0.002]
[1765110685235,0.02347269,89344.0,89340.0,0.01119319]
[1765110685474,0.04751269,89344.0,89341.0,0.23505388]
[1765110685684,0.03632,89344.0,89341.0,0.23505388]
[1765110687239,0.02404,89343.0,89341.0,0.002]
[1765110687449,0.01603,89342.0,89341.0,0.002]
[1765110687652,0.0275,89342.0,89341.0,0.002]
[1765110688338,0.0275,89342.0,89339.0,0.01119331]
[1765110688782,0.0275,89342.0,89341.0,0.002]
[1765110688943,0.01147,89342.0,89341.0,0.002]
[1765110689147,0.01147,89342.0,89340.0,0.22386332]
[1765110690518,0.01147,89342.0,89340.0,0.22586332]
[1765110694389,0.01228,89344.0,89343.0,0.22385637]
[1765110695666,0.06163156,89346.0,89345.0,0.22385136]
[1765110701147,0.02883344,89350.0,89347.0,0.01119231]
[1765110701355,0.01764,89350.0,89349.0,0.00826]
[1765110703204,0.23502245,89354.0,89350.0,0.23503077]
[1765110704169,0.23502245,89354.0,89350.0,0.01119194]
[1765110705333,0.23602245,89354.0,89350.0,0.01119194]
[1765110706377,0.01119156,89353.0,89349.0,0.00826]
[1765110706947,0.25822533,89353.0,89349.0,0.00826]
[1765110707152,0.23502533,89353.0,89349.0,0.00826]
[1765110707376,0.02348144,89354.0,89350.0,0.01119194]
[1765110707579,0.001,89353.0,89350.0,0.01119194]
[1765110707777,0.03461406,89353.0,89350.0,0.01119194]
[1765110708285,0.02348144,89354.0,89350.0,0.01119194]
[1765110708521,0.03361406,89352.0,89351.0,0.01119181]
[1765110708665,0.03361406,89352.0,89351.0,0.23502814]
[1765110708862,0.001,89354.0,89351.0,0.23502814]
[1765110709292,0.001,89354.0,89351.0,0.01119181]
[1765110709525,0.01219144,89354.0,89351.0,0.01119181]
[1765110710453,0.01119144,89354.0,89351.0,0.01119181]
[1765110711009,0.0448035,89357.0,89354.0,0.01119144]
[1765110711429,0.01119106,89357.0,89354.0,0.01119144]
[1765110711637,0.01119106,89357.0,89353.0,0.01119156]
[1765110712364,0.01219106,89357.0,89353.0,0.01119156]
[1765110712745,0.01119119,89356.0,89354.0,0.00826]
[1765110713569,0.01119131,89355.0,89352.0,0.01119169]
[1765110713775,0.01119131,89355.0,89351.0,0.01119181]
[1765110714181,0.01119131,89355.0,89351.0,0.23502784]
[1765110714391,0.01119131,89355.0,89351.0,0.01119181]
[1765110714787,0.01219131,89355.0,89351.0,0.01119181]
[1765110715322,0.01119144,89354.0,89351.0,0.01119181]
[1765110716809,0.01119144,89354.0,89350.0,0.01119194]
[1765110717251,0.01219144,89354.0,89351.0,0.01119181]
[1765110717657,0.01119144,89354.0,89351.0,0.01119181]
[1765110717913,0.01119144,89354.0,89353.0,0.23502288]
[1765110717914,0.001,89354.0,89353.0,0.23502288]
[1765110718113,0.001,89354.0,89353.0,0.24328288]
[1765110718610,0.01764,89358.0,89355.0,0.01119131]
[1765110719091,0.01764,89358.0,89355.0,0.23501538]
[1765110720240,0.01764,89358.0,89357.0,0.2238213]
[1765110720446,0.01764,89358.0,89356.0,0.22382145]
[1765110720999,0.01764,89358.0,89355.0,0.01119131]
[1765110721201,0.01119119,89356.0,89353.0,0.00826]
[1765110723540,0.01219119,89356.0,89353.0,0.00826]
[1765110728716,0.01119131,89355.0,89352.0,0.01119169]
[1765110728932,0.23501782,89355.0,89352.0,0.01119169]
[1765110729524,0.23501805,89355.0,89350.0,0.01119194]
[1765110729771,0.23501805,89355.0,87251.0,0.038377]
[1765110729772,0.22386389,89340.0,89339.0,0.01764]
[1765110729994,0.01119419,89332.0,89329.0,0.00987287]
[1765110730208,0.23507812,89332.0,89329.0,0.03522912]
[1765110730426,0.01224,89330.0,89329.0,0.00161287]
[1765110732657,0.01224,89330.0,89329.0,0.00361287]
[1765110732862,0.02814,89330.0,89329.0,0.00361287]
[1765110733161,0.05194,89330.0,89329.0,0.00161287]
[1765110734286,0.02814,89330.0,89329.0,0.00161287]
[1765110734906,0.01224,89333.0,89330.0,0.22388895]
[1765110735093,0.00875,89334.0,89331.0,0.01119432]
[1765110735293,0.01119382,89335.0,89332.0,0.01119419]
[1765110735499,0.02316494,89339.0,89333.0,0.01119407]
[1765110735702,0.00875,89337.0,89334.0,0.23507286]
[1765110736092,0.00875,89337.0,89334.0,0.01119394]
[1765110736335,0.001,89334.0,89333.0,0.01119407]
[1765110736639,0.00875,89337.0,89333.0,0.01119407]
[1765110737146,0.00975,89337.0,89334.0,0.01119394]
[1765110737537,0.01119344,89338.0,89335.0,0.01119382]
[1765110738125,0.002,89337.0,89335.0,0.01119382]
[1765110738328,0.01119331,89339.0,89336.0,0.01119369]
[1765110738665,0.002,89338.0,89336.0,0.01119369]
[1765110738858,0.001,89337.0,89336.0,0.01119369]
[1765110739306,0.002,89337.0,89335.0,0.01119382]
[1765110739726,0.01119344,89338.0,89335.0,0.01119382]
[1765110739903,0.01319344,89338.0,89335.0,0.01119382]
[1765110740278,0.002,89338.0,89334.0,0.23507266]
[1765110740479,0.001,89337.0,89334.0,0.01119394]
[1765110740681,0.001,89337.0,89335.0,0.22387642]
[1765110741041,0.001,89337.0,89334.0,0.01119394]
[1765110741272,0.01119394,89334.0,89331.0,0.00826]
[1765110741472,0.01197,89332.0,89329.0,0.01280744]
[1765110741635,0.02316419,89332.0,89329.0,0.01280744]
[1765110742492,0.01197,89332.0,89329.0,0.23669882]
[1765110742692,0.01197,89332.0,89329.0,0.01280744]
[1765110742900,0.01197,89332.0,89329.0,0.23869843]
[1765110743101,0.01197,89332.0,89329.0,0.01480744]
[1765110743535,0.01197,89332.0,89329.0,0.01280744]
[1765110743849,0.01197,89332.0,89329.0,0.01380744]
[1765110744266,0.01197,89332.0,89329.0,0.01580744]
[1765110744476,0.01197,89332.0,89329.0,0.01380744]
[1765110744894,0.01197,89332.0,89329.0,0.01480744]
[1765110745078,0.0159,89330.0,89329.0,0.01480744]
[1765110745298,0.0159,89330.0,89329.0,0.00361287]
[1765110745522,0.01197,89332.0,89329.0,0.01480744]
[1765110745713,0.03339543,89332.0,89329.0,0.01480744]
[1765110746132,0.03339543,89332.0,89329.0,0.01280744]
[1765110746693,0.01119394,89334.0,89329.0,0.01280744]
[1765110746896,0.01119407,89333.0,89329.0,0.01280744]
[1765110747104,0.01119407,89333.0,89330.0,0.23508339]
[1765110747322,0.01119394,89334.0,89331.0,0.01119432]
[1765110748257,0.01119394,89334.0,89331.0,0.01945432]
[1765110748869,0.01119394,89334.0,89331.0,0.00826]
[1765110749066,0.23507515,89334.0,89331.0,0.00826]
[1765110751281,0.01119394,89334.0,89331.0,0.00826]
[1765110754469,0.0159,89332.0,89329.0,0.01280744]
[1765110754727,0.01197,89331.0,89329.0,0.01280744]
[1765110755750,0.0397,89330.0,89329.0,0.00161287]
[1765110755952,0.05500796,89330.0,89329.0,0.00161287]
[1765110757602,0.05500796,89330.0,89329.0,0.00261287]
[1765110757819,0.11663952,89330.0,89329.0,0.00261287]
[1765110758028,0.11663952,89330.0,89329.0,0.00161287]
[1765110767253,0.11663952,89330.0,89325.0,0.00171015]
[1765110767254,0.22389897,89326.0,89325.0,0.00171015]
[1765110767403,0.25204897,89326.0,89325.0,0.00171015]
[1765110767607,0.27537897,89326.0,89325.0,0.00171015]
[1765110775047,0.05148,89326.0,89325.0,0.00171015]
[1765110776457,0.07271543,89326.0,89325.0,0.00171015]
[1765110777775,0.05129,89326.0,89325.0,0.00171015]
[1765110777961,0.27518897,89326.0,89325.0,0.00171015]
[1765110783298,0.27618897,89326.0,89325.0,0.00171015]
[1765110786460,0.68342406,89326.0,89325.0,0.00171015]
[1765110786672,0.70758945,89326.0,89325.0,0.00171015]
[1765110787234,0.68342406,89326.0,89325.0,0.00171015]
[1765110788017,0.59918897,89326.0,89325.0,0.00171015]
[1765110789302,0.60018897,89326.0,89325.0,0.00171015]
[1765110789457,0.59918897,89326.0,89325.0,0.00171015]
[1765110789885,0.60218897,89326.0,89325.0,0.00171015]
[1765110803126,0.61338604,89326.0,89325.0,0.00171015]
[1765110804628,0.63754157,89326.0,89325.0,0.00171015]
[1765110806024,0.61338604,89326.0,89325.0,0.00171015]
[1765110806281,0.63754691,89326.0,89325.0,0.00171015]
[1765110806883,0.62634984,89326.0,89325.0,0.00171015]
[1765110810041,0.60218897,89326.0,89325.0,0.00171015]
[1765110810234,0.62635445,89326.0,89325.0,0.00171015]
[1765110810675,0.60218897,89326.0,89325.0,0.00171015]
[1765110811444,0.62635688,89326.0,89325.0,0.00171015]
[1765110811819,0.60218897,89326.0,89325.0,0.00171015]
[1765110813262,0.62636149,89326.0,89325.0,0.00171015]
[1765110813875,0.37829,89326.0,89325.0,0.00171015]
[1765110815082,0.35515,89326.0,89325.0,0.00171015]
[1765110815297,0.004,89326.0,89325.0,0.01672015]
[1765110815525,0.004,89326.0,89325.0,0.04209302]
[1765110816360,0.003,89326.0,89325.0,0.04209302]
[1765110817616,0.01119394,89334.0,89329.0,0.01119457]
[1765110818835,0.01119394,89334.0,89330.0,0.01119444]
[1765110819207,0.003,89334.0,89333.0,0.00826]
[1765110819748,0.002,89334.0,89333.0,0.00826]
[1765110819932,0.003,89334.0,89333.0,0.00826]
[1765110820571,0.002,89334.0,89333.0,0.00826]
[1765110821279,0.01119357,89337.0,89334.0,0.01119394]
[1765110821890,0.01177,89339.0,89336.0,0.01119369]
[1765110822442,0.01177,89339.0,89336.0,0.23506729]
[1765110822640,0.01119294,89342.0,89338.0,0.2350622]
[1765110823055,0.01177,89343.0,89340.0,0.23505631]
[1765110824085,0.06163156,89344.0,89342.0,0.22385836]
[1765110824915,0.02296219,89348.0,89345.0,0.01119256]
[1765110824916,0.06163156,89348.0,89345.0,0.01119256]
[1765110825764,0.07282375,89348.0,89342.0,0.2350513]
[1765110825972,0.01119244,89346.0,89342.0,0.2350513]
[1765110826133,0.01119244,89346.0,89343.0,0.01119281]
[1765110827414,0.01119244,89346.0,89342.0,0.2350513]
[1765110827616,0.01119256,89345.0,89342.0,0.01119294]
[1765110828703,0.01119244,89346.0,89343.0,0.01119281]
[1765110828912,0.01119231,89347.0,89343.0,0.01119281]
[1765110829720,0.07282375,89348.0,89344.0,0.01119269]
[1765110829895,0.01119231,89347.0,89343.0,0.01119281]
[1765110830108,0.07282375,89348.0,89344.0,0.01119269]
[1765110830892,0.001,89347.0,89344.0,0.01119269]
[1765110831458,0.02280231,89347.0,89344.0,0.01119269]
[1765110832162,0.02380231,89347.0,89344.0,0.01119269]
[1765110833713,0.24764885,89347.0,89344.0,0.01119269]
[1765110834284,0.02380231,89347.0,89344.0,0.01119269]
[1765110834495,0.01606,89345.0,89342.0,0.01119294]
[1765110834700,0.02767,89343.0,89341.0,0.01119306]
[1765110835996,0.02767,89343.0,89341.0,0.01219306]
[1765110836882,0.01161,89343.0,89341.0,0.23605203]
[1765110837623,0.01119219,89348.0,89343.0,0.23504863]
[1765110837800,0.02268,89354.0,89350.0,0.01119194]
[1765110838000,0.02268,89354.0,89351.0,0.22383633]
[1765110838201,0.323,89355.0,89352.0,0.01119169]
[1765110838375,0.323,89355.0,89352.0,0.23502326]
[1765110838982,0.002,89354.0,89352.0,0.23502326]
[1765110840408,0.07884911,89356.0,89353.0,0.01119156]
[1765110840680,0.003,89355.0,89353.0,0.01119156]
[1765110840859,0.05616911,89356.0,89353.0,0.23502044]
[1765110841055,0.001,89355.0,89353.0,0.01119156]
[1765110841256,0.002,89354.0,89353.0,0.01119156]
[1765110841664,0.05616911,89356.0,89353.0,0.01119156]
[1765110841858,0.01519131,89355.0,89352.0,0.23502509]
[1765110842058,0.004,89355.0,89352.0,0.01119169]
[1765110842275,0.05616911,89356.0,89353.0,0.01119156]
[1765110842652,0.001,89354.0,89353.0,0.01119156]
[1765110843427,0.001,89354.0,89351.0,0.01119181]
[1765110843428,0.01119169,89352.0,89346.0,0.01119244]
[1765110843606,0.01119194,89350.0,89347.0,0.23503866]
[1765110843761,0.01119194,89350.0,89347.0,0.01119231]
[1765110843961,0.02328181,89351.0,89347.0,0.23503754]
[1765110844202,0.02328181,89351.0,89348.0,0.01119219]
[1765110844987,0.001,89350.0,89348.0,0.01119219]
[1765110845403,0.02528181,89351.0,89348.0,0.01119219]
[1765110845603,0.0158,89349.0,89346.0,0.01119244]
[1765110845823,0.02789,89347.0,89346.0,0.01119244]
[1765110846357,0.05057,89347.0,89346.0,0.01119244]
[1765110846700,0.05057,89347.0,89344.0,0.01119269]
[1765110847060,0.05057,89347.0,89341.0,0.01119306]
[1765110847061,0.22386881,89339.0,89334.0,0.00826]
[1765110847215,0.01119394,89334.0,89326.0,0.00826]
[1765110847422,0.01119444,89330.0,89327.0,0.01119482]
[1765110847624,0.01119432,89331.0,89328.0,0.01119469]
[1765110847836,0.01209,89329.0,89328.0,0.01119469]
[1765110848229,0.01119469,89328.0,89325.0,0.00332302]
[1765110848437,0.02699469,89328.0,89325.0,0.00332302]
[1765110848658,0.02268,89327.0,89325.0,0.00332302]
[1765110848858,0.0158,89326.0,89325.0,0.00332302]
[1765110850263,0.01119469,89328.0,89325.0,0.00832302]
[1765110850475,0.01119469,89328.0,89325.0,0.00332302]
[1765110850691,0.24657675,89327.0,89325.0,0.00332302]
[1765110850879,0.02268,89327.0,89325.0,0.00432302]
[1765110851092,0.02268,89327.0,89325.0,0.00332302]
[1765110851520,0.01119469,89328.0,89325.0,0.00332302]
[1765110852036,0.22389647,89327.0,89325.0,0.00332302]
[1765110852207,0.03618469,89328.0,89325.0,0.00332302]
[1765110853324,0.22389647,89327.0,89325.0,0.00332302]
[1765110853732,0.01623,89326.0,89325.0,0.00332302]
[1765110853931,0.04122,89326.0,89325.0,0.00332302]
[1765110854496,0.04122,89326.0,89325.0,0.00171015]
[1765110854925,0.04122,89326.0,89325.0,0.00271015]
[1765110856235,0.04122,89326.0,89325.0,0.00171015]
[1765110862321,0.06264543,89326.0,89325.0,0.00171015]
[1765110862704,0.07498543,89326.0,89325.0,0.00171015]
[1765110869556,0.03376543,89326.0,89325.0,0.00171015]
[1765110869962,0.01119432,89331.0,89326.0,0.01119494]
[1765110870128,0.01119444,89330.0,89326.0,0.02703494]
[1765110870329,0.01119432,89331.0,89327.0,0.01119482]
[1765110871195,0.06163156,89332.0,89329.0,0.01119457]
[1765110871416,0.24716787,89333.0,89330.0,0.00826]
[1765110871751,0.285518,89331.0,89330.0,0.00826]
[1765110872022,0.22389145,89329.0,89327.0,0.00161287]
[1765110873457,0.22389145,89329.0,89327.0,0.00461287]
[1765110873633,0.22389145,89329.0,89327.0,0.00561287]
[1765110874154,0.01119444,89330.0,89327.0,0.00561287]
[1765110874940,0.01119444,89330.0,89327.0,0.00461287]
[1765110875118,0.01119444,89330.0,89327.0,0.00161287]
[1765110875320,0.01119444,89330.0,89327.0,0.00261287]
[1765110875525,0.01119444,89330.0,89327.0,0.00461287]
[1765110875946,0.01119444,89330.0,89329.0,0.00158892]
[1765110877109,0.01119444,89330.0,89329.0,0.00358892]
[1765110877942,0.06163156,89332.0,89330.0,0.01119444]
[1765110878161,0.06163156,89332.0,89331.0,0.01584]
[1765110878667,0.06163156,89332.0,89329.0,0.02406744]
[1765110878897,0.07282575,89332.0,89329.0,0.02106744]
[1765110879054,0.07282575,89332.0,89331.0,0.0015283]
[1765110879256,0.07282575,89332.0,89331.0,0.0025283]
[1765110879665,0.07282575,89332.0,89331.0,0.0015283]
[1765110881021,0.01119419,89332.0,89331.0,0.0015283]
[1765110881186,0.13547118,89332.0,89331.0,0.0015283]
[1765110881806,0.13547118,89332.0,89331.0,0.0025283]
[1765110882366,0.13547118,89332.0,89331.0,0.0015283]
[1765110882578,0.13647118,89332.0,89331.0,0.0015283]
[1765110882909,0.13747118,89332.0,89331.0,0.0015283]
[1765110893926,0.09105575,89332.0,89331.0,0.0015283]
[1765110895059,0.07482575,89332.0,89331.0,0.0015283]
[1765110895465,0.002,89332.0,89331.0,0.0399783]
[1765110895974,0.002,89332.0,89331.0,0.0167183]
[1765110896179,0.002,89332.0,89331.0,0.24060474]
[1765110897657,0.002,89332.0,89331.0,0.24221761]
[1765110898135,0.002,89332.0,89331.0,0.01833117]
[1765110898850,0.002,89332.0,89331.0,0.00314117]
[1765110901279,0.0412,89332.0,89331.0,0.0015283]
[1765110901500,0.10283156,89332.0,89331.0,0.0015283]
[1765110901703,0.12425699,89332.0,89331.0,0.0015283]
[1765110902442,0.08505699,89332.0,89331.0,0.0015283]
[1765110902646,0.06363156,89332.0,89331.0,0.0015283]
[1765110904516,0.06363156,89332.0,89331.0,0.22541474]
[1765110905486,0.06363156,89332.0,89331.0,0.0015283]
[1765110907612,0.002,89332.0,89331.0,0.22541474]
[1765110907957,0.002,89332.0,89331.0,0.23367474]
[1765110908508,0.002,89332.0,89331.0,0.0097883]
[1765110911642,0.002,89332.0,89331.0,0.0015283]
[1765110911643,0.10379156,89332.0,89331.0,0.0015283]
[1765110911874,0.12521699,89332.0,89331.0,0.0015283]
[1765110913245,0.18707588,89332.0,89331.0,0.0015283]
[1765110913683,0.13641356,89332.0,89331.0,0.0015283]
[1765110935308,0.11498813,89332.0,89331.0,0.0015283]
[1765110950835,0.13641356,89332.0,89331.0,0.0015283]
[1765110951255,0.11498813,89332.0,89331.0,0.0015283]
[1765110957678,0.12628813,89332.0,89331.0,0.0015283]
[1765110958892,0.01119507,89325.0,89322.0,0.00591375]
[1765110959095,0.01119507,89325.0,89322.0,0.00752662]
[1765110960450,0.01119507,89325.0,89322.0,0.00852662]
[1765110961239,0.22390398,89324.0,89322.0,0.00261287]
[1765110961638,0.23561398,89324.0,89322.0,0.00261287]
[1765110962389,0.23561398,89324.0,89322.0,0.00361287]
[1765110962535,0.23561398,89324.0,89322.0,0.00261287]
[1765110962739,0.0395,89323.0,89322.0,0.00261287]
[1765110962945,0.0395,89323.0,89322.0,0.00361287]
[1765110963802,0.23561412,89324.0,89322.0,0.00261287]
[1765110964023,0.01171,89324.0,89322.0,0.00261287]
[1765110964150,0.23520101,89326.0,89323.0,0.22390649]
[1765110964151,0.0113,89326.0,89323.0,0.22390649]
[1765110964361,0.0113,89326.0,89323.0,0.23671468]
[1765110964631,0.0113,89326.0,89323.0,0.23695708]
[1765110966620,0.0113,89326.0,89325.0,0.22390148]
[1765110967074,0.0113,89326.0,89323.0,0.23695708]
[1765110967285,0.0113,89326.0,89325.0,0.22390148]
[1765110967973,0.0113,89326.0,89323.0,0.23695708]
[1765110968181,0.01945607,89328.0,89325.0,0.23670896]
[1765110968389,0.01119444,89330.0,89327.0,0.00826]
[1765110969036,0.07282588,89331.0,89327.0,0.01945482]
[1765110969545,0.001,89328.0,89327.0,0.01945482]
[1765110969726,0.06163156,89331.0,89328.0,0.23508865]
[1765110970271,0.06363156,89331.0,89328.0,0.23508865]
[1765110970549,0.001,89330.0,89328.0,0.23508865]
[1765110970756,0.001,89330.0,89328.0,0.01119469]
[1765110970906,0.24779352,89330.0,89327.0,0.00826]
[1765110971109,0.01119457,89329.0,89325.0,0.01280794]
[1765110971316,0.01119457,89329.0,89326.0,0.01119494]
[1765110971878,0.02290444,89330.0,89326.0,0.01119494]
[1765110972063,0.02290444,89330.0,89325.0,0.00161287]
[1765110972309,0.01637,89326.0,89325.0,0.00161287]
[1765110972630,0.03984,89326.0,89325.0,0.00161287]
[1765110975979,0.06126543,89326.0,89325.0,0.00161287]
[1765110976812,0.07246163,89326.0,89325.0,0.00161287]
[1765110984419,0.04899163,89326.0,89325.0,0.00161287]
[1765110984692,0.0510362,89326.0,89325.0,0.00161287]
[1765110985564,0.0275662,89326.0,89325.0,0.00161287]
[1765110986073,0.0111962,89326.0,89325.0,0.00161287]
[1765110986220,0.0111962,89326.0,89325.0,0.22551435]
[1765110986883,0.07282588,89331.0,89328.0,0.01119469]
[1765110987082,0.03362182,89330.0,89328.0,0.01119469]
[1765110987285,0.04481626,89330.0,89325.0,0.01280794]
[1765110987691,0.01119444,89330.0,89325.0,0.01280794]
[1765110987923,0.22389145,89329.0,89325.0,0.01280794]
[1765110988145,0.03362182,89329.0,89325.0,0.01280794]
[1765110988907,0.04481639,89329.0,89325.0,0.01280794]
[1765110989150,0.04581639,89329.0,89325.0,0.01280794]
[1765110989443,0.01119469,89328.0,89325.0,0.00161287]
[1765110990201,0.02263241,89328.0,89325.0,0.00161287]
[1765110990636,0.22389647,89327.0,89325.0,0.00161287]
[1765110991999,0.22489647,89327.0,89325.0,0.00161287]
[1765110992890,0.22589647,89327.0,89325.0,0.00161287]
[1765110994964,0.002,89327.0,89325.0,0.00161287]
[1765110998337,0.22389897,89326.0,89325.0,0.00161287]
[1765111001677,0.02263241,89328.0,89325.0,0.00161287]
[1765111001876,0.24652862,89328.0,89325.0,0.00161287]
[1765111002480,0.22389894,89327.0,89325.0,0.00161287]
[1765111004626,0.22489894,89327.0,89325.0,0.00161287]
[1765111004839,0.22589894,89327.0,89325.0,0.00161287]
[1765111008749,0.002,89327.0,89325.0,0.00161287]
[1765111010698,0.03562182,89327.0,89325.0,0.00161287]
[1765111011061,0.002,89327.0,89325.0,0.00161287]
[1765111011408,0.01143772,89326.0,89325.0,0.00161287]
[1765111016708,0.05013772,89326.0,89325.0,0.00161287]
[1765111017401,0.02651772,89326.0,89325.0,0.00161287]
[1765111018853,0.01143772,89326.0,89325.0,0.00161287]
[1765111022221,0.01143772,89326.0,89325.0,0.04035287]
[1765111022377,0.01119394,89334.0,89331.0,0.01119432]
[1765111022712,0.03361903,89335.0,89334.0,0.01945394]
[1765111022915,0.01129,89337.0,89334.0,0.01945394]
[1765111023300,0.03361903,89336.0,89335.0,0.24733642]
[1765111023497,0.01764,89340.0,89335.0,0.24733642]
[1765111023498,0.01764,89340.0,89339.0,0.00826]
[1765111024267,0.01119306,89341.0,89339.0,0.02435]
[1765111024648,0.03361783,89342.0,89339.0,0.02435]
[1765111024862,0.33419281,89343.0,89339.0,0.03554331]
[1765111025079,0.33419281,89343.0,89340.0,0.01119319]
[1765111025080,0.04481064,89343.0,89340.0,0.01119319]
[1765111025282,0.06163156,89346.0,89343.0,0.23504918]
[1765111025483,0.06163156,89346.0,89345.0,0.00826]
[1765111026966,0.06363156,89346.0,89345.0,0.00826]
[1765111027166,0.06663156,89346.0,89345.0,0.00826]
[1765111029922,0.29048041,89346.0,89345.0,0.00826]
[1765111030142,0.06663156,89346.0,89345.0,0.00826]
[1765111030485,0.29048041,89346.0,89345.0,0.00826]
[1765111033559,0.06663156,89346.0,89345.0,0.00826]
[1765111034528,0.005,89346.0,89345.0,0.00826]
[1765111039116,0.01119256,89345.0,89342.0,0.02238588]
[1765111040459,0.01419256,89345.0,89342.0,0.02238588]
[1765111040658,0.22385637,89343.0,89342.0,0.01119294]
[1765111041956,0.23704634,89345.0,89342.0,0.01119294]
[1765111042146,0.001,89343.0,89342.0,0.01119294]
[1765111042523,0.003,89343.0,89342.0,0.01119294]
[1765111042907,0.23504634,89345.0,89342.0,0.01119294]
[1765111043267,0.23704634,89345.0,89342.0,0.01119294]
[1765111043460,0.23504634,89345.0,89342.0,0.01119294]
[1765111043834,0.002,89343.0,89342.0,0.01119294]
[1765111044020,0.23604634,89345.0,89342.0,0.01119294]
[1765111044794,0.23504634,89345.0,89342.0,0.01119294]
[1765111045319,0.001,89343.0,89342.0,0.01119294]
[1765111045498,0.001,89343.0,89341.0,0.00826]
[1765111045707,0.01119269,89344.0,89341.0,0.01945319]
[1765111045909,0.01319256,89345.0,89342.0,0.01119294]
[1765111046112,0.01419256,89345.0,89342.0,0.01119294]
[1765111046280,0.01219256,89345.0,89342.0,0.01119294]
[1765111046482,0.01119256,89345.0,89342.0,0.01119294]
[1765111046705,0.002,89343.0,89342.0,0.01119294]
[1765111046924,0.001,89344.0,89342.0,0.01119294]
[1765111048227,0.002,89345.0,89343.0,0.23980637]
[1765111048543,0.001,89345.0,89344.0,0.02421]
[1765111048759,0.001,89345.0,89344.0,0.04681]
[1765111048877,0.01119231,89347.0,89344.0,0.00826]
[1765111049555,0.002,89345.0,89344.0,0.00826]
[1765111049744,0.01119231,89347.0,89344.0,0.00826]
[1765111049941,0.23703953,89347.0,89344.0,0.00826]
[1765111050142,0.24003953,89347.0,89344.0,0.00826]
[1765111050342,0.23703953,89347.0,89344.0,0.00826]
[1765111051130,0.23503953,89347.0,89344.0,0.00826]
[1765111051447,0.001,89345.0,89344.0,0.00826]
[1765111051648,0.003,89345.0,89344.0,0.00826]
[1765111052018,0.23503953,89347.0,89344.0,0.00826]
[1765111052230,0.24003953,89347.0,89344.0,0.00826]
[1765111052445,0.24003953,89347.0,89344.0,0.01945269]
[1765111052651,0.23703953,89347.0,89344.0,0.01945269]
[1765111052850,0.002,89345.0,89344.0,0.01945269]
[1765111053259,0.01319231,89347.0,89344.0,0.01945269]
[1765111053469,0.01619231,89347.0,89344.0,0.01945269]
[1765111054305,0.005,89347.0,89344.0,0.01945269]
[1765111054506,0.003,89347.0,89344.0,0.01945269]
[1765111054787,0.01119219,89348.0,89344.0,0.01945269]
[1765111055014,0.003,89345.0,89344.0,0.01945269]
[1765111055418,0.01119231,89347.0,89344.0,0.01945269]
[1765111055556,0.01119219,89348.0,89345.0,0.01119256]
[1765111055729,0.005,89347.0,89345.0,0.01119256]
[1765111055981,0.002,89347.0,89345.0,0.01119256]
[1765111056402,0.01119219,89348.0,89345.0,0.01119256]
[1765111056891,0.01119319,89349.0,89346.0,0.01119244]
[1765111057293,0.02246194,89350.0,89346.0,0.01119244]
[1765111057625,0.01119206,89349.0,89346.0,0.01119244]
[1765111057791,0.002,89348.0,89346.0,0.01119244]
[1765111058282,0.01119206,89349.0,89346.0,0.01119244]
[1765111058512,0.003,89347.0,89346.0,0.01119244]
[1765111058720,0.002,89350.0,89347.0,0.23503866]
[1765111058926,0.003,89348.0,89347.0,0.23503866]
[1765111059333,0.002,89348.0,89347.0,0.01119231]
[1765111060161,0.005,89348.0,89347.0,0.01119231]
[1765111060687,0.003,89348.0,89347.0,0.01119231]
[1765111060892,0.005,89348.0,89347.0,0.01119231]
[1765111062174,0.005,89348.0,89347.0,0.05014231]
[1765111062335,0.005,89348.0,89347.0,0.05175518]
[1765111062537,0.005,89348.0,89347.0,0.08536758]
[1765111063328,0.005,89348.0,89347.0,0.06157758]
[1765111069811,0.005,89348.0,89347.0,0.02796518]
[1765111071177,0.005,89348.0,89347.0,0.01280518]
[1765111074664,0.23504808,89344.0,89341.0,0.01119169]
[1765111074893,0.01119394,89334.0,89329.0,0.01119457]
[1765111075100,0.01119394,89334.0,89330.0,0.01119444]
[1765111075236,0.01119432,89331.0,89326.0,0.02238838]
[1765111075438,0.01119469,89328.0,89324.0,0.01119519]
[1765111075636,0.01119457,89329.0,89326.0,0.01119494]
[1765111077685,0.01119457,89329.0,89328.0,0.001]
[1765111077880,0.01119457,89329.0,89326.0,0.01219494]
[1765111078280,0.01119457,89329.0,89326.0,0.01519494]
[1765111078682,0.01119457,89329.0,89326.0,0.01219494]
[1765111079711,0.01119482,89327.0,89324.0,0.01119519]
[1765111079923,0.01119457,89329.0,89325.0,0.01119507]
[1765111080080,0.01119457,89329.0,89328.0,0.001]
[1765111080506,0.01119457,89329.0,89326.0,0.01119494]
[1765111081276,0.01119432,89331.0,89328.0,0.01119469]
[1765111082728,0.01119407,89333.0,89329.0,0.23508583]
[1765111083869,0.001,89331.0,89329.0,0.01119457]
[1765111084361,0.01119419,89332.0,89329.0,0.01119457]
[1765111084856,0.01219407,89333.0,89329.0,0.23508574]
[1765111085162,0.001,89331.0,89330.0,0.01119444]
[1765111085555,0.01119394,89334.0,89331.0,0.01119432]
[1765111085740,0.001,89332.0,89331.0,0.01119432]
[1765111086938,0.01119394,89334.0,89331.0,0.01119432]
[1765111088098,0.001,89332.0,89331.0,0.01119432]
[1765111088428,0.01119394,89334.0,89331.0,0.01119432]
[1765111088629,0.01119394,89334.0,89330.0,0.01119444]
[1765111088931,0.01319394,89334.0,89330.0,0.01119444]
[1765111089553,0.01119432,89331.0,89326.0,0.24496665]
[1765111089749,0.01119444,89330.0,89327.0,0.01119482]
[1765111090570,0.01119432,89331.0,89327.0,0.01119482]
[1765111091140,0.01119407,89333.0,89329.0,0.01119457]
[1765111091340,0.01119394,89334.0,89330.0,0.01119444]
[1765111091537,0.2350676,89336.0,89331.0,0.23508076]
[1765111091738,0.2350676,89336.0,89332.0,0.01119419]
[1765111092510,0.01119319,89340.0,89335.0,0.01119382]
[1765111092684,0.01119331,89339.0,89335.0,0.02628382]